[Event "36th Belgrade Trophy 2023"]
[Site "Belgrade"]
[Date "2023.11.30"]
[Round "6.12"]
[White "Antic, Dejan"]
[Black "Veleski, Robert"]
[Result "1-0"]
[ECO "E97"]
[WhiteElo "2362"]
[BlackElo "2064"]
[Annotator "RC"]
[PlyCount "129"]
[EventDate "2023.10.23"]
[EventType "swiss"]
[EventCountry "SRB"]
[SourceTitle "playchess.com"]
[Source "ChessBase"]
[SourceQuality "1"]
[TimeControl "40/5400+30:900+30"]

1. d4 {[%emt 0:00:07]} Nf6 {[%emt 0:03:34]} 2. c4 {[%emt 0:00:25]} g6 {[%emt 0:00:59]} 3. Nc3 {[%emt 0:00:10]} Bg7 {[%emt 0:00:16]} 4. e4 {[%emt 0:00:10]} d6 {[%emt 0:00:06]} 5. Nf3 {[%emt 1:32:08]} O-O {[%emt 0:01:00]} 6. Be2 {[%emt 0:00:30]} e5 {[%emt 0:01:09]} 7. O-O {[%emt 0:00:00]} Nc6 {[%emt 0:00:13]} 8. d5 {[%emt 0:00:00]} Ne7 {[%emt 0:00:07]} 9. b4 {[%emt 0:00:00]} Nh5 {[%emt 0:02:00]} 10. g3 {[%emt 0:02:00]} f5 {[%emt 0:01:18]} 11. Ng5 {[%emt 0:00:00]} Nf6 {[%emt 0:00:22]} 12. Bf3 {[%emt 0:00:00]} fxe4 {[%emt 1:25:26]} 13. Ncxe4 {[%emt 0:00:00]} Nf5 {[%emt 0:00:30]} 14. Bg2 {[%emt 0:00:00]} Nd4 {[%emt 0:00:30]} 15. Be3 {[%emt 0:02:30]} Nxe4 {[%emt 0:00:00]} 16. Nxe4 {[%emt 0:00:30]} Bf5 {[%emt 0:01:00]} 17. h3 {[%emt 0:00:30]} h6 {[%emt 0:00:30]} 18. c5 {[%emt 0:00:30]} g5 {[%emt 0:00:30]} 19. Rc1 {[%emt 0:00:00]} Qd7 {[%emt 0:00:30]} 20. g4 {[%emt 0:00:00]} Bg6 {[%emt 0:00:30]} 21. a4 {[%emt 0:01:30]} Rf7 {[%emt 0:00:30]} 22. c6 {[%emt 0:00:30]} bxc6 {[%emt 0:00:00]} 23. dxc6 {[%emt 0:00:30]} Qd8 {[%emt 0:00:00]} 24. Nc3 {[%emt 0:00:00]} Kh7 {[%emt 0:00:00]} 25. Bd5 {[%emt 0:00:00]} Rf8 {[%emt 0:00:00]} 26. f3 {[%emt 0:00:00]} Qe7 {[%emt 0:02:30]} 27. b5 {[%emt 0:02:00]} Ne6 {[%emt 0:00:00]} 28. Be4 {[%emt 0:00:30]} Qf7 {[%emt 0:00:00]} 29. Bxg6+ {[%emt 0:00:00]} Qxg6 {[%emt 0:00:00]} 30. Qc2 {[%emt 0:00:00]} Nd4 {[%emt 0:00:00]} 31. Qxg6+ {[%emt 0:00:00]} Kxg6 {[%emt 0:00:00]} 32. Kg2 {[%emt 0:02:00]} Rf7 {[%emt 0:03:00]} 33. Nd5 {[%emt 0:00:30]} Raf8 {[%emt 0:00:00]} 34. Bxd4 {[%emt 0:00:00]} exd4 {[%emt 0:00:00]} 35. a5 {[%emt 0:00:00]} Rb8 {[%emt 0:00:00]} 36. b6 {[%emt 0:00:00]} axb6 {[%emt 0:00:00]} 37. axb6 {[%emt 0:00:00]} cxb6 {[%emt 0:00:00]} 38. c7 {[%emt 0:00:00]} Rc8 {[%emt 0:00:00]} 39. Rc6 {[%emt 0:00:00]} Be5 {[%emt 0:00:00]} 40. Rfc1 {[%emt 0:00:00]} b5 {[%emt 0:00:00]} 41. Nb6 {[%emt 0:00:00]} Rff8 {[%emt 0:00:00]} 42. Nxc8 {[%emt 0:00:00]} Rxc8 {[%emt 0:20:00]} 43. Rb1 {[%emt 0:00:00]} d3 {[%emt 0:00:00]} 44. Kf1 {[%emt 0:00:00]} d2 {[%emt 0:00:00]} 45. Ke2 {[%emt 0:00:00]} Bf4 {[%emt 0:00:00]} 46. Kd1 {[%emt 0:00:00]} Kf7 {[%emt 0:02:00]} 47. Kc2 {[%emt 0:02:26]} Ke7 {[%emt 0:00:00]} 48. Rxb5 {[%emt 0:03:25]} Kd7 {[%emt 0:00:00]} 49. Rb8 {[%emt 0:00:31]} Rxc7 {[%emt 0:00:00]} 50. Rxc7+ {[%emt 0:00:07]} Kxc7 {[%emt 0:00:00]} 51. Rh8 {[%emt 0:00:08]} Kc6 {[%emt 0:00:00]} 52. Rxh6 {[%emt 0:00:18]} Kd5 {[%emt 0:00:00]} 53. h4 {[%emt 0:00:56]} gxh4 {[%emt 0:00:00]} 54. Rxh4 {[%emt 0:00:16]} Ke5 {[%emt 0:00:00]} 55. Rh5+ {[%emt 0:01:22]} Ke6 {[%emt 0:00:00]} 56. Rb5 {[%emt 0:00:41]} d5 {[%emt 0:00:00]} 57. Kd1 {[%emt 0:00:24]} Ke5 {[%emt 0:00:00]} 58. Ke2 {[%emt 0:00:15]} Be3 {[%emt 0:06:00]} 59. Rb2 {[%emt 0:00:44]} Kf4 {[%emt 0:00:00]} 60. Rxd2 {[%emt 0:00:25]} d4 {[%emt 0:00:00]} 61. Rd3 {[%emt 0:17:02]} Bg1 {[%emt 0:00:00]} 62. Rd1 {[%emt 0:00:00]} Be3 {[%emt 0:00:00]} 63. Rh1 {[%emt 0:00:00]} Kg3 {[%emt 0:00:00]} 64. Rh5 {[%emt 0:01:30]} Bc1 {[%emt 0:00:00]} 65. Rf5 {[%emt 0:00:00]} 1-0

[Event "36th Belgrade Trophy 2023"]
[Site "Belgrade"]
[Date "2023.11.30"]
[Round "6.13"]
[White "Chubakov, Sultan"]
[Black "Besedes, Danilo"]
[Result "0-1"]
[ECO "D11"]
[WhiteElo "2079"]
[BlackElo "2277"]
[Annotator "RC"]
[PlyCount "88"]
[EventDate "2023.10.23"]
[EventType "swiss"]
[EventCountry "SRB"]
[SourceTitle "playchess.com"]
[Source "ChessBase"]
[SourceQuality "1"]
[TimeControl "40/5400+30:900+30"]

1. d4 {[%emt 0:00:12]} d5 {[%emt 0:09:08]} 2. Nf3 {[%emt 0:00:56]} c6 {[%emt 0:03:25]} 3. g3 {[%emt 0:02:21]} Nf6 {[%emt 0:00:49]} 4. Bg2 {[%emt 0:00:07]} Bg4 {[%emt 0:02:54]} 5. O-O {[%emt 0:00:50]} e6 {[%emt 0:00:13]} 6. b3 {[%emt 0:01:44]} Nbd7 {[%emt 0:00:32]} 7. Bb2 {[%emt 0:01:21]} Bd6 {[%emt 0:00:47]} 8. c4 {[%emt 0:01:16]} O-O {[%emt 0:00:23]} 9. Nbd2 {[%emt 0:03:12]} a5 {[%emt 0:00:46]} 10. a3 {[%emt 0:02:26]} Qe7 {[%emt 0:01:29]} 11. Ne5 {[%emt 0:05:09]} Bh5 {[%emt 0:02:19]} 12. h3 {[%emt 0:12:14]} Bc7 {[%emt 0:09:58]} 13. Bf3 {[%emt 0:09:00]} Bxf3 {[%emt 0:03:06]} 14. exf3 {[%emt 0:02:12]} Nxe5 {[%emt 0:01:56]} 15. dxe5 {[%emt 0:00:11]} Nd7 {[%emt 0:01:44]} 16. f4 {[%emt 0:00:58]} a4 {[%emt 0:04:03]} 17. b4 {[%emt 0:01:59]} Rfd8 {[%emt 0:02:44]} 18. Qc2 {[%emt 0:02:09]} dxc4 {[%emt 0:01:07]} 19. Nxc4 {[%emt 0:01:49]} b5 {[%emt 0:00:16]} 20. Ne3 {[%emt 0:08:33]} c5 {[%emt 0:00:13]} 21. Rfd1 {[%emt 0:02:28]} Rac8 {[%emt 0:04:05]} 22. Bc3 {[%emt 0:08:28]} Bb6 {[%emt 0:03:58]} 23. Qe2 {[%emt 0:02:33]} c4 {[%emt 0:01:19]} 24. Ng4 {[%emt 0:06:19]} Nb8 {[%emt 0:05:54]} 25. Rd6 {[%emt 0:08:42]} Bc7 {[%emt 0:03:41]} 26. Rdd1 {[%emt 0:00:46]} Rxd1+ {[%emt 0:00:53]} 27. Rxd1 {[%emt 0:00:12]} Rd8 {[%emt 0:00:10]} 28. Ne3 {[%emt 0:04:07]} Nc6 {[%emt 0:01:29]} 29. Rd2 {[%emt 0:02:54]} Bb6 {[%emt 0:02:25]} 30. Nc2 {[%emt 0:01:01]} h6 {[%emt 0:02:21]} 31. Qd1 {[%emt 0:00:50]} Rxd2 {[%emt 0:00:52]} 32. Qxd2 {[%emt 0:00:03]} Qc7 {[%emt 0:02:20]} 33. Kf1 {[%emt 0:02:55]} Qb7 {[%emt 0:02:42]} 34. f5 {[%emt 0:04:38]} exf5 {[%emt 0:00:34]} 35. Qd5 {[%emt 0:00:17]} f4 {[%emt 0:16:51]} 36. gxf4 {[%emt 0:02:22]} Qc8 {[%emt 0:00:43]} 37. Kg2 {[%emt 0:00:49]} Ne7 {[%emt 0:01:07]} 38. Qxb5 {[%emt 0:00:30]} Qb7+ {[%emt 0:00:44]} 39. f3 {[%emt 0:00:32]} Ng6 {[%emt 0:01:13]} 40. Nd4 {[%emt 0:00:00]} Nxf4+ {[%emt 0:00:00]} 41. Kg3 {[%emt 0:08:39]} Ne2+ {[%emt 0:01:30]} 42. Kh2 {[%emt 0:00:13]} Nxc3 {[%emt 0:00:11]} 43. Qxc4 {[%emt 0:00:31]} Bxd4 {[%emt 0:00:07]} 44. Qxd4 {[%emt 0:00:03]} Qxf3 {[%emt 0:00:07]} 0-1

[Event "36th Belgrade Trophy 2023"]
[Site "Belgrade"]
[Date "2023.11.30"]
[Round "6.14"]
[White "Marjanovic, Ivan D"]
[Black "Djokic, Nenad"]
[Result "0-1"]
[ECO "C22"]
[WhiteElo "2057"]
[BlackElo "2223"]
[Annotator "RC"]
[PlyCount "101"]
[EventDate "2023.10.23"]
[EventType "swiss"]
[EventCountry "SRB"]
[SourceTitle "playchess.com"]
[Source "ChessBase"]
[SourceQuality "1"]
[TimeControl "40/5400+30:900+30"]

1. e4 {[%emt 1:31:00]} e5 {[%emt 1:31:00]} 2. d4 {[%emt 0:00:30]} exd4 {[%emt 0:00:00]} 3. Qxd4 Nc6 {[%emt 0:01:00]} 4. Qe3 {[%emt 0:01:00]} d6 {[%emt 0:00:30]} 5. Nc3 {[%emt 0:00:30]} Nf6 {[%emt 0:00:30]} 6. Bd2 {[%emt 0:00:30]} g6 {[%emt 0:00:30]} 7. h4 {[%emt 0:00:30]} Bg7 {[%emt 0:00:30]} 8. f3 {[%emt 0:00:30]} h5 {[%emt 0:00:00]} 9. Bc4 Qe7 {[%emt 0:01:00]} 10. Nh3 {[%emt 0:01:00]} Ne5 {[%emt 0:00:30]} 11. Bb3 {[%emt 0:00:30]} Be6 {[%emt 0:00:00]} 12. Nf4 Bxb3 {[%emt 0:00:00]} 13. axb3 a6 {[%emt 0:01:30]} 14. O-O-O {[%emt 0:01:30]} c6 {[%emt 0:00:30]} 15. Qe2 {[%emt 0:00:30]} b5 {[%emt 0:00:30]} 16. Rdg1 {[%emt 0:00:30]} Nfd7 {[%emt 0:00:30]} 17. g4 {[%emt 0:00:30]} hxg4 {[%emt 0:00:30]} 18. fxg4 {[%emt 0:00:30]} Rxh4 {[%emt 0:00:00]} 19. g5 {[%emt 0:00:00]} Rxh1 {[%emt 0:00:00]} 20. Rxh1 {[%emt 0:01:00]} Nf8 {[%emt 0:00:00]} 21. Qf2 Qc7 {[%emt 0:02:00]} 22. Rh3 {[%emt 0:01:00]} a5 {[%emt 0:00:00]} 23. Kb1 a4 {[%emt 0:01:00]} 24. bxa4 {[%emt 0:01:00]} bxa4 {[%emt 0:00:30]} 25. Ka2 {[%emt 0:00:30]} Nc4 {[%emt 0:00:30]} 26. Bc1 {[%emt 0:00:30]} Qb7 {[%emt 0:00:30]} 27. Qe2 {[%emt 0:00:30]} Qb4 {[%emt 0:00:30]} 28. Nd3 {[%emt 0:00:30]} Qa5 {[%emt 0:00:30]} 29. Nf4 {[%emt 0:00:30]} Qc5 {[%emt 0:00:30]} 30. Qf1 {[%emt 0:00:30]} Ne5 {[%emt 0:00:30]} 31. Qd1 {[%emt 0:00:30]} Ne6 {[%emt 0:00:30]} 32. Rh7 {[%emt 0:00:30]} Kf8 {[%emt 0:00:30]} 33. Nxe6+ {[%emt 0:00:00]} fxe6 {[%emt 0:00:30]} 34. Be3 {[%emt 0:01:00]} Qc4+ {[%emt 0:00:30]} 35. Kb1 {[%emt 0:00:30]} Nf7 {[%emt 0:00:30]} 36. e5 {[%emt 0:00:30]} Kg8 {[%emt 0:00:30]} 37. Rxg7+ {[%emt 0:00:00]} Kxg7 {[%emt 0:00:00]} 38. exd6 a3 {[%emt 0:00:00]} 39. b3 a2+ {[%emt 0:01:30]} 40. Nxa2 {[%emt 0:02:00]} Qa6 {[%emt 0:00:30]} 41. Bd4+ {[%emt 0:00:00]} e5 42. Nb4 {[%emt 0:16:00]} Qb5 {[%emt 0:16:00]} 43. Bc3 {[%emt 0:00:30]} Rd8 {[%emt 0:00:00]} 44. d7 c5 {[%emt 0:01:00]} 45. Qd5 {[%emt 0:01:00]} Qf1+ {[%emt 0:00:00]} 46. Kb2 cxb4 {[%emt 0:00:00]} 47. Bxe5+ {[%emt 0:00:00]} Nxe5 {[%emt 0:00:00]} 48. Qxe5+ {[%emt 0:01:30]} Kf7 {[%emt 0:00:00]} 49. Qd5+ Ke7 {[%emt 0:02:30]} 50. Qc5+ {[%emt 0:01:00]} Kxd7 {[%emt 0:00:30]} 51. Qb5+ {[%emt 0:00:30]} 0-1

[Event "36th Belgrade Trophy 2023"]
[Site "Belgrade"]
[Date "2023.11.30"]
[Round "6.15"]
[White "Scekic, Veljko"]
[Black "Petrusic, Velimir"]
[Result "1-0"]
[ECO "C00"]
[WhiteElo "2211"]
[BlackElo "2060"]
[Annotator "NA RC"]
[PlyCount "45"]
[EventDate "2023.10.23"]
[EventType "swiss"]
[EventCountry "SRB"]
[SourceTitle "playchess.com"]
[Source "ChessBase"]
[SourceQuality "1"]
[TimeControl "40/5400+30:900+30"]

1. e4 {[%emt 0:00:04]} e6 {[%emt 0:11:04]} 2. c4 {[%emt 0:00:24]} d5 {[%emt 0:00:10]} 3. cxd5 {[%emt 0:00:04]} exd5 {[%emt 0:00:02]} 4. exd5 {[%emt 0:00:08]} Nf6 {[%emt 0:00:15]} 5. Nc3 {[%emt 0:00:05]} Nxd5 {[%emt 0:00:20]} 6. Nf3 {[%emt 0:00:08]} Bb4 {[%emt 0:21:22]} 7. a3 {[%emt 0:10:06]} Bxc3 {[%emt 0:06:24]} 8. dxc3 {[%emt 0:00:52]} O-O {[%emt 0:01:34]} 9. Be2 {[%emt 0:00:04]} Bg4 {[%emt 0:06:12]} 10. O-O {[%emt 0:01:45]} Nc6 {[%emt 0:03:05]} 11. Qa4 {[%emt 0:03:32]} Qd7 {[%emt 0:07:05]} 12. Rd1 {[%emt 0:01:09]} Qe6 {[%emt 0:06:26]} 13. Nd4 {[%emt 0:15:33]} Qg6 {[%emt 0:14:59]} 14. Bxg4 {[%emt 0:00:22]} Qxg4 {[%emt 0:00:01]} 15. h3 {[%emt 0:02:45]} Qh4 {[%emt 0:00:06]} 16. Qb5 {[%emt 0:02:22]} Qh5 {[%emt 0:17:17]} 17. Nf3 {[%emt 0:02:25]} Rad8 {[%emt 0:01:49]} 18. Bg5 {[%emt 0:02:31]} Nf6 {[%emt 0:00:42]} 19. Qxb7 {[%emt 0:01:30]} Ne5 {[%emt 0:00:16]} 20. Rxd8 {[%emt 0:03:50]} Rxd8 {[%emt 0:00:01]} 21. Nxe5 {[%emt 0:01:03]} Qxg5 {[%emt 0:00:27]} 22. Qxc7 {[%emt 0:00:22]} Nh5 {[%emt 0:01:17]} 23. Nxf7 {[%emt 0:01:13]} 1-0

[Event "36th Belgrade Trophy 2023"]
[Site "Belgrade"]
[Date "2023.12.01"]
[Round "7.1"]
[White "Pap, Misa"]
[Black "Blagojevic, Dragisa"]
[Result "1/2-1/2"]
[ECO "C92"]
[WhiteElo "2426"]
[BlackElo "2438"]
[Annotator "TA"]
[PlyCount "35"]
[EventDate "2023.10.23"]
[EventType "swiss"]
[EventCountry "SRB"]
[SourceTitle "playchess.com"]
[Source "ChessBase"]
[SourceQuality "1"]
[TimeControl "40/5400+30:900+30"]

{[%evp 26,28,24,11,29]} 1. e4 {[%emt 0:00:12]} e5 {[%emt 0:11:22]} 2. Nf3 {[%emt 0:00:24]} Nc6 {[%emt 0:00:05]} 3. Bb5 {[%emt 0:00:09]} a6 {[%emt 0:00:05]} 4. Ba4 {[%emt 0:00:09]} Nf6 {[%emt 0:00:12]} 5. O-O {[%emt 0:00:38]} Be7 {[%emt 0:00:15]} 6. Re1 {[%emt 0:00:10]} b5 {[%emt 0:00:08]} 7. Bb3 {[%emt 0:00:05]} d6 {[%emt 0:00:07]} 8. c3 {[%emt 0:00:26]} O-O {[%emt 0:00:07]} 9. h3 {[%emt 0:00:59]} h6 {[%emt 0:00:19]} 10. d4 {[%emt 0:01:48]} Re8 {[%emt 0:02:22]} 11. Nbd2 {[%emt 1:31:00]} Bf8 {[%emt 0:00:21]} 12. a4 {[%emt 0:00:30]} Bb7 {[%emt 1:21:07]} 13. d5 {[%emt 0:00:00]} Nb8 {[%emt 0:00:30]} 14. c4 {[%emt 0:00:00]} c6 {[%emt 0:00:30] [#] Not much happened in this game.  C92: Closed Ruy Lopez: 9...Be6, Karpov and Flohr-Zaitsev Variations.} {Predecessor:} 15. axb5 $146 axb5 16. Rxa8 Bxa8 17. dxc6 bxc4 18. Nxc4 {½-½ Madaminov,M (2471)-Kovalev,V (2603) Astana Zhuldyzdary op-A 2023 (5)} 1/2-1/2

[Event "36th Belgrade Trophy 2023"]
[Site "Belgrade"]
[Date "2023.12.01"]
[Round "7.2"]
[White "Nenezic, Marko"]
[Black "Atalik, Suat"]
[Result "0-1"]
[ECO "D28"]
[WhiteElo "2499"]
[BlackElo "2427"]
[Annotator "TA"]
[PlyCount "80"]
[EventDate "2023.10.23"]
[EventType "swiss"]
[EventCountry "SRB"]
[SourceTitle "playchess.com"]
[Source "ChessBase"]
[SourceQuality "1"]
[TimeControl "40/5400+30:900+30"]

{[%evp 18,80,11,0,0,0,0,6,0,0,4,0,0,0,0,0,-13,0,0,0,0,0,-1,-13,-10,-35,-31,-20,-23,-22,-4,-41,-43,-69,-55,-120,-120,-120,-116,-123,-124,-136,-110,-145,-111,-285,-266,-287,-277,-369,-356,-471,-463,-508,-497,-500,-492,-512,-502,-542,-518,-650,-648,-780,-612]} 1. d4 {[%emt 0:00:24]} d5 {[%emt 0:00:21]} 2. c4 {[%emt 0:00:24]} dxc4 {[%emt 0:00:12]} 3. e3 {[%emt 0:00:45]} a6 {[%emt 0:00:54]} 4. Bxc4 {[%emt 0:00:31]} e6 {[%emt 0:00:09]} 5. Nf3 {[%emt 0:00:43]} c5 {[%emt 0:00:34]} 6. O-O {[%emt 0:01:34]} Nf6 {[%emt 0:00:35]} 7. Bb3 {[%emt 0:00:42]} Nc6 {[%emt 0:03:07]} 8. Nc3 {[%emt 0:00:54]} b5 {[%emt 0:00:33]} 9. Qe2 {[%emt 0:04:17]} Bb7 {[%emt 0:00:48]} 10. Rd1 {[%emt 0:09:38]} Be7 $1 {[%emt 0:00:07] D28: Queen's Gambit Accepted: Classical main line: 7 Qe2 with early ...Nc6.} 11. d5 {[%emt 0:05:56]} exd5 {[%emt 0:02:07]} 12. Nxd5 {[%emt 0:00:05]} Nxd5 {[%emt 0:00:14] The position is equal.} 13. Bxd5 {[%emt 0:00:06]} Qb6 {[%emt 0:00:07]} 14. e4 {[%emt 0:03:13]} O-O {[%emt 0:00:37]} 15. Be3 {[%emt 0:00:31]} Nb4 {[%emt 0:15:55]} 16. Bxb7 {[%emt 0:01:35]} Qxb7 {[%emt 0:00:06]} 17. a3 {[%emt 0:00:04]} Nc6 {[%emt 0:00:39]} 18. Rd5 {[%emt 1:08:08]} Rad8 {[%emt 0:05:51]} 19. Rad1 {[%emt 0:00:00]} c4 {[%emt 0:11:03]} 20. Bf4 {[%emt 0:00:00]} Rfe8 {[%emt 0:03:59] [#]} 21. h4 $146 {[%emt 0:00:00]} ({Predecessor:} 21. R1d2 Qc8 22. h3 Qe6 23. Bc7 Rc8 24. Rd7 h6 25. e5 Qf5 26. Qe3 Bg5 27. Nxg5 hxg5 {1-0 Maurischat,P (2176)-Krockenberger,M (2170) Oberliga Wuerttemberg 0809 2008 (1.5)}) 21... Qc8 {[%emt 0:02:32]} 22. Qc2 {[%emt 0:00:00]} h6 {[%emt 0:01:50]} 23. h5 {[%emt 0:00:00]} Qe6 {[%emt 0:06:39]} 24. Bc7 {[%emt 0:00:00]} Rc8 {[%emt 0:00:20]} 25. Bg3 {[%emt 0:00:00]} Bf8 {[%emt 0:04:30]} (25... b4 $5 {[%cal Rb4a3]}) 26. e5 {[%emt 0:00:00]} ({White should try} 26. Ne5 $15) 26... Red8 {[%emt 0:00:51]} 27. Rxd8 {[%emt 0:01:47]} Rxd8 {[%emt 0:00:07]} 28. Rxd8 {[%emt 0:00:17]} Nxd8 {[%emt 0:00:06]} 29. Qe4 {[%emt 0:00:20] Inhibits Qg4.} Qc6 {[%emt 0:00:51] Repels Qa8} 30. Nd2 {[%emt 0:00:38]} c3 {[%emt 0:07:31]} 31. bxc3 {[%emt 0:01:47] [#] Now White is beyond hope.} (31. Qxc6 $17 Nxc6 32. bxc3) 31... Qxc3 $19 {[%emt 0:03:33]} 32. Qd5 {[%emt 0:00:52]} Ne6 {[%emt 0:00:37]} 33. Kh2 {[%emt 0:00:07]} Qd4 {[%emt 0:00:59] Prevents Ne4} ({Inferior is} 33... Bxa3 34. Nb1 Qc5 35. Qa8+ Qf8 36. Qxa6 $11) (33... Qxa3 $2 {too greedy.} 34. Ne4 $19) 34. Qa2 {[%emt 0:00:35]} Qg4 {[%emt 0:03:04] Black is clearly winning.} 35. Nf3 {[%emt 0:01:07]} Qxh5+ {[%emt 0:00:13]} 36. Kg1 {[%emt 0:00:04]} Qg4 {[%emt 0:00:11]} 37. Qd5 {[%emt 0:00:31]} g5 {[%emt 0:03:52]} 38. Qa8 {[%emt 0:00:23]} Qa4 {[%emt 0:00:34]} 39. Kh2 {[%emt 0:00:07]} h5 {[%emt 0:00:33] And now ...h4 would win.} 40. Kh1 {[%emt 0:00:00]} Qd1+ {[%emt 0:00:00] Weighted Error Value: White=0.35/Black=0.04 (flawless)} 0-1

[Event "36th Belgrade Trophy 2023"]
[Site "Belgrade"]
[Date "2023.12.01"]
[Round "7.3"]
[White "Savic, Mihailo S"]
[Black "Bryakin, Mikhail"]
[Result "0-1"]
[ECO "C68"]
[WhiteElo "2157"]
[BlackElo "2478"]
[Annotator "TA"]
[PlyCount "82"]
[EventDate "2023.10.23"]
[EventType "swiss"]
[EventCountry "SRB"]
[SourceTitle "playchess.com"]
[Source "ChessBase"]
[SourceQuality "1"]
[TimeControl "40/5400+30:900+30"]

{[%evp 15,82,-12,0,0,0,0,0,0,0,0,0,0,62,0,0,0,0,0,0,-79,-72,-79,-80,-69,-83,-72,-72,-194,-199,-177,-129,-177,-177,-208,-208,-219,-199,-200,-161,-173,-41,-153,-160,-165,-182,-135,-181,-201,-202,-178,-171,-264,-269,-394,-394,-394,-393,-363,-355,-448,-446,-29966,-29965,-29962,-29966,-29971,-29972,-29973,-29974]} 1. e4 {[%emt 0:05:58]} e5 {[%emt 0:00:36]} 2. Nf3 {[%emt 0:01:04]} Nc6 {[%emt 0:00:05]} 3. Bb5 {[%emt 0:00:03]} a6 {[%emt 0:00:15]} 4. Bxc6 {[%emt 0:00:49]} dxc6 {[%emt 0:00:14]} 5. O-O {[%emt 0:00:14]} Bg4 {[%emt 0:00:12]} 6. h3 {[%emt 0:00:05]} h5 {[%emt 0:00:14]} 7. d3 {[%emt 0:00:22]} Qf6 {[%emt 0:00:18]} 8. Nbd2 {[%emt 0:00:05] [#]} g5 $1 {[%emt 0:00:31]} 9. b4 {[%emt 0:17:47] C68: Ruy Lopez: Exchange Variation, sidelines.} Qg7 {[%emt 0:00:55]} 10. Nc4 {[%emt 0:00:16]} ({But not} 10. hxg4 hxg4 $17) 10... Bc8 $1 {[%emt 0:00:17]} ({Don't do} 10... Bxf3 11. Qxf3 f6 12. Bd2 $14) 11. Bxg5 {[%emt 0:11:47] The position is equal.} f6 {[%emt 0:00:21]} 12. Bd2 {[%emt 0:00:56]} Bxh3 {[%emt 0:00:13][%csl Gh3][%cal Rg7g2]} 13. Nh4 {[%emt 0:00:13]} Ne7 {[%emt 0:00:17]} (13... O-O-O $11) 14. Qf3 {[%emt 0:06:13]} (14. f4 $1 $14) 14... Be6 $11 {[%emt 0:01:05]} 15. a4 {[%emt 0:05:09]} O-O-O {[%emt 0:00:49] Hoping for ...Bxc4.} 16. Ne3 {[%emt 0:05:20][%cal Ob4b5]} b6 {[%emt 0:00:12] [#]} 17. Nef5 $146 {[%emt 0:03:25]} (17. Rfb1 $11 {remains equal.}) ({Predecessor:} 17. a5 b5 18. Qg3 Qf7 19. f4 Rg8 20. Qe1 exf4 21. Rxf4 Ng6 22. Rf3 Bg4 23. Rf1 Nxh4 24. Qxh4 {0-1 Stukalov,M (2244)-Parshin,V (2423) RUS RC1/Ruby email 2018}) 17... Nxf5 $1 $17 {[%emt 0:01:40]} 18. Nxf5 {[%emt 0:02:06]} Qg4 {[%emt 0:04:21]} 19. Qxg4 {[%emt 0:02:24]} hxg4 {[%emt 0:00:24]} 20. Ne3 {[%emt 0:03:30]} c5 {[%emt 0:02:17][%cal Bc6c5,Bc5c4][%mdl 32] Black is more active.} 21. Rfb1 {[%emt 0:08:18] [#]} (21. a5 $17) 21... c4 $1 $19 {[%emt 0:01:33][%mdl 512]} 22. Ra3 {[%emt 0:00:12]} (22. Be1 cxd3) 22... Rh7 {[%emt 0:10:38]} (22... a5 $19 23. Be1 Rd7) 23. Be1 {[%emt 0:07:14]} (23. a5 $17 {was called for.}) 23... a5 {[%emt 0:08:49]} 24. dxc4 {[%emt 0:02:29] [#]} Bxb4 $1 {[%emt 0:01:06]} 25. Rd3 {[%emt 0:02:40]} Rdh8 {[%emt 0:02:41][%csl Gh8][%cal Rh7h1]} 26. Kf1 {[%emt 0:00:33]} Rh1+ {[%emt 0:00:40]} 27. Ke2 {[%emt 0:00:01]} Rxe1+ {[%emt 0:07:52]} 28. Rxe1 {[%emt 0:00:04]} Bxe1 {[%emt 0:00:05]} 29. Kxe1 {[%emt 0:00:03][%mdl 4096] Endgame [#] KRB-KRN} Rh1+ $1 {[%emt 0:00:06]} 30. Kd2 {[%emt 0:00:12]} Ra1 {[%emt 0:00:14] Wards off Ra3} 31. Nd5 {[%emt 0:00:28]} Rxa4 {[%emt 0:00:45]} 32. Nxf6 {[%emt 0:02:47]} Rxc4 {[%emt 0:00:48]} 33. Rg3 {[%emt 0:02:15]} (33. f3 $142) 33... a4 {[%emt 0:00:31]} 34. Nxg4 {[%emt 0:01:50]} (34. Ra3 {keeps fighting.}) 34... a3 {[%emt 0:02:27][%mdl 64] Deflection} (34... Rxe4 $2 {loses.} 35. Nh2 $19) 35. Rxa3 {[%emt 0:01:33]} Bxg4 {[%emt 0:00:07] KRB-KR} 36. f3 {[%emt 0:00:03]} Be6 {[%emt 0:00:11]} 37. c3 {[%emt 0:02:08]} b5 {[%emt 0:00:44][%cal Bb6b5,Bb5a4,Ba4a3][%mdl 32] aiming for ...Ra4.} 38. g3 {[%emt 0:00:40]} (38. Ra5 $19 c6 39. Ra7) 38... Ra4 {[%emt 0:00:55] Black mates.} 39. Rxa4 {[%emt 0:00:54]} bxa4 {[%emt 0:00:05]} 40. f4 {[%emt 0:00:00]} a3 {[%emt 0:00:00]} 41. Kc2 {[%emt 0:00:07]} Bc4 {[%emt 0:01:23] Weighted Error Value: White=0.43/Black=0.11 (very precise)} 0-1